Cogmind - Beta 17 @@@ ROGUE MODE // 2026.08.01 @ 20:39:38 Player: oskarw Result: Self-destructed Performance ------------- Evolutions (1) 500 Regions Visited (3) 600 Robots Destroyed (65) 325 Value Destroyed (1250) 1250 Prototype IDs (5) 100 Alien Tech Used (0) 0 Bonus (26) 26 TOTAL SCORE: 2801 Bonus ------- High Alert Combat Kills 26 Cogmind --------- Core Integrity 260/400 Matter 300/300 Energy 280/280 System Corruption 0% Temperature Cool (0) Movement Walking (120) Location -9/Mines Parts ------- > --- POWER (1) -------- Heavy Ion Engine > --- PROPULSION (4) --- Improved Aluminum Leg Improved Aluminum Leg Improved Aluminum Leg Improved Aluminum Leg > --- UTILITY (2) ------ Medium Storage Unit Seismic Detector > --- WEAPON (2) ------- Advanced Beam Cannon Light Cannon > --- INVENTORY (10) --- Heavy Ion Engine Aluminum Leg Aluminum Leg Improved Heat Sink High-capacity Matter Pod (176) Medium Armor Plating Light EM Pulse Cannon Light Cannon Rocket Launcher Peak State ------------ > --- POWER ------------ Heavy Ion Engine > --- PROPULSION ------- Aluminum Leg Improved Aluminum Leg Improved Aluminum Leg Improved Aluminum Leg > --- UTILITY ---------- Improved Heat Sink Medium Storage Unit > --- WEAPON ----------- Light EM Pulse Cannon Advanced Beam Cannon > --- INVENTORY -------- Heavy Ion Engine Aluminum Leg Aluminum Leg Improved Aluminum Leg High-capacity Matter Pod Seismic Detector Medium Armor Plating Hacking Suite Light Cannon Light Cannon [Rating: 20] Favorites ----------- Power Heavy Ion Engine Engine Heavy Ion Engine Propulsion Aluminum Leg Treads Light Treads Leg Aluminum Leg Utility Small Storage Unit Device Seismic Detector Storage Small Storage Unit Processor Transport Network Coupler Weapon Medium Laser Energy Gun Medium Laser Energy Cannon Advanced Beam Cannon Ballistic Gun Assault Rifle Ballistic Cannon Light Cannon Build | -11 -10 -9 -9 ------- Run | Yrd Mat Mat Min Slots Evolved 2 | . . 2 . Power . | . . . . Propulsion 2 | . . 2 . Utility . | . . . . Weapon . | . . . . Parts Attached 38 | 7 6 25 . Power 5 | 1 . 4 . Engine 5 | 1 . 4 . Core . | . . . . Reactor . | . . . . Propulsion 13 | 2 2 9 . Treads 2 | 2 . . . Leg 11 | . 2 9 . Wheel . | . . . . Hover . | . . . . Flight . | . . . . Utility 10 | 2 2 6 . Device 4 | 1 1 2 . Storage 3 | 1 1 1 . Processor 3 | . . 3 . Hackware . | . . . . Protection . | . . . . Artifact . | . . . . Weapon 10 | 2 2 6 . Energy Gun 4 | 1 2 1 . Energy Cannon 2 | . . 2 . Ballistic Gun 2 | 1 . 1 . Ballistic Cannon 2 | . . 2 . Launcher . | . . . . Special Weapon . | . . . . Impact Weapon . | . . . . Slashing Weapon . | . . . . Piercing Weapon . | . . . . Special Melee Weapon . | . . . . Unidentified Prototypes . | . . . . Parts Lost 5 | . 2 3 . Power . | . . . . Propulsion 2 | . 1 1 . Utility 1 | . . 1 . Weapon 2 | . 1 1 . Highest Loss Streak 1 | . 1 1 . To Critical Strikes 1 | . . 1 . Average Backups 7 | 2 6 8 9 Power 1 | . 1 1 1 Propulsion 1 | 1 2 1 2 Utility 2 | . 1 3 3 Weapon 1 | . 1 1 3 Tool/Special . | . . . . Unused Backups 16 | . 7 4 5 Power 3 | . . 2 1 Propulsion 2 | . 2 . . Utility 6 | . 4 . 2 Weapon 5 | . 1 2 2 Tool/Special . | . . . . Average Slot Usage (%) 99 | . 99 99 100 Engine 11 | . 14 11 11 Treads 4 | . 14 . . Leg 34 | . 12 43 44 Device 10 | . 14 9 11 Storage 11 | . 14 10 11 Processor 1 | . . 1 . Energy Gun 7 | . 14 5 . Energy Cannon 5 | . . 7 11 Ballistic Gun 4 | . 14 . . Ballistic Cannon 5 | . . 8 11 Peak Build Rating 20 | 7 7 20 18 Average Rating 12 | 5 6 15 18 On Entrance 8 | . 7 7 18 Avg Prop Armor Cover (%) . | . . . . Naked Turns . | . . . . Heaviest Build 26 | 15 15 26 26 Greatest Support 52 | 40 40 52 52 Greatest Overweight (x) 1 | 1 . . . Average Overweight (x) . | . . . . Largest Inventory Capacity 25 | 8 25 10 10 Average Capacity 8 | 7 8 8 10 Most Carried 10 | 4 8 10 9 Average Carried 7 | 2 6 8 9 Final Capacity 10 | 8 8 10 10 Final Carried 9 | 4 7 9 9 Class Distribution -------------------- 82% | Mutant 17% | Scavenger-Mutant Dominant Class ---------------- Mutant | -10/Materials Mutant | -9/Materials Mutant | -9/Mines Resources | -11 -10 -9 -9 ----------- Run | Yrd Mat Mat Min Matter Collected 1560 | 210 599 751 . Remotely . | . . . . Salvage Created 2105 | 23 538 1544 . Parts 135 | 3 34 98 . Haulers Intercepted 6 | . 1 5 . Recyclers Shooed 2 | . 1 1 . Parts Field Recycled . | . . . . Retrieved Matter . | . . . . Parts Self-Destructed . | . . . . Prevented . | . . . . Parts Restored . | . . . . Kills | -11 -10 -9 -9 ------- Run | Yrd Mat Mat Min Combat Hostiles Destroyed 37 | . 11 26 . Guns 17 | . 11 6 . Cannons 20 | . . 20 . Classes Destroyed 10 | 1 7 2 . Worker 3 | . 1 2 . Tunneler 3 | 1 . 2 . Hauler 6 | . 1 5 . Recycler 5 | . 1 4 . Operator 4 | . 2 2 . Watcher 7 | . 2 5 . Swarmer 16 | . 5 11 . Grunt 15 | . 6 9 . Duelist 1 | . . 1 . Sentry 5 | . . 5 . Best Kill Streak 5 | 1 5 5 . Combat Bots Only 4 | . 4 4 . Max Kills in Single Turn 2 | 1 1 2 . Gunslinging . | . . . . Exploded . | . . . . Melee . | . . . . Uniques/NPCs Destroyed . | . . . . Combat | -11 -10 -9 -9 -------- Run | Yrd Mat Mat Min Hostile Shots Fired 223 | . 68 155 . Missed 88 | . 21 67 . Hits 135 | . 47 88 . Projectile 135 | . 47 88 . Critical Strikes 1 | . . 1 . Damage Taken 1514 | . 655 859 . Core 256 | . 116 140 . Absorbed by Shields . | . . . . Regen/Repaired (Parts) 111 | . . 111 . Core Remaining (%) 76 | 100 53 . . Volleys Fired 164 | 1 50 113 . Largest 2 | 2 2 2 . Hottest 100 | 60 70 100 . Shots Fired 326 | 2 99 225 . Gun 194 | 2 99 93 . Cannon 132 | . . 132 . Launcher . | . . . . Special . | . . . . Kinetic 134 | 1 50 83 . Thermal 141 | . 41 100 . Explosive . | . . . . Electromagnetic 51 | 1 8 42 . Robot Hit Streak 15 | 1 6 15 . Robot Miss Streak 7 | . 4 7 . Penetration Max . | . . . . Secondary Targets 4 | . 4 . . Max Gunslinging Chain 1 | . 1 . . Shots Hit Robots 179 | 1 56 122 . Core Hits 87 | 1 29 57 . Critical Kills . | . . . . Critical Parts Destroyed 1 | . 1 . . Critical Strikes 13 | . 3 10 . Burn 8 | . 1 7 . Destroy 1 | . 1 . . Blast 2 | . . 2 . Corrupt 2 | . 1 1 . Melee Attacks . | . . . . Impact . | . . . . Slashing . | . . . . Piercing . | . . . . Sneak Attacks . | . . . . Combat Hostiles . | . . . . Follow-up Attacks . | . . . . Damage Inflicted 3127 | 13 782 2332 . Guns 1524 | 13 741 770 . Cannons 1519 | . . 1519 . Explosions 41 | . 41 . . Melee . | . . . . Ramming 43 | . . 43 . Kinetic 1009 | . 342 667 . Thermal 1266 | . 365 901 . Explosive . | . . . . Electromagnetic 809 | 13 75 721 . Impact . | . . . . Slashing . | . . . . Piercing . | . . . . Highest Corruption . | . . . . Average Corruption . | . . . . Corruption Purged . | . . . . Corruption Blocked . | . . . . Overload Shots . | . . . . Overflow Damage 37 | . . 37 . Projectiles 37 | . . 37 . Explosions . | . . . . Melee . | . . . . Knockbacks 5 | . . 5 . Impact . | . . . . Kinetic 4 | . . 4 . Secondary 1 | . . 1 . Self-Inflicted Damage 126 | . 126 . . Shots 2 | . 2 . . Rammed . | . . . . Targets Rammed 6 | . . 6 . Kicked 6 | . . 6 . Crushed . | . . . . Highest Temperature 153 | . 153 90 . Average Temperature 39 | . 51 27 . Received Heat Transfer 405 | . 216 189 . Siege Activations . | . . . . Martial Activations . | . . . . Shielding Activations . | . . . . Robots Disrupted . | . . . . Combat Hostiles . | . . . . Robots Corrupted . | . . . . Combat Hostiles . | . . . . Parts Fried 4 | . 1 3 . Impact Corruptions . | . . . . Robots Melted 1 | . . 1 . Combat Hostiles . | . . . . Parts Melted 4 | . 1 3 . Heat Transferred 3935 | . 1086 2849 . Parts Sabotaged . | . . . . Parts Stolen . | . . . . Parts Stripped . | . . . . Power Chain Reactions 1 | . 1 . . Alert | -11 -10 -9 -9 ------- Run | Yrd Mat Mat Min Maximum Alert Level 2 | . . 2 . Low Security (%) 74 | 100 100 61 100 Level 1 14 | . . 22 . Level 2 10 | . . 16 . Level 3 . | . . . . Level 4 . | . . . . Level 5 . | . . . . High Security . | . . . . Max Security . | . . . . Peak Influence 427 | 5 171 427 40 Initial 60 | . . 60 40 Average 153 | . 86 190 40 Influence Increases 1386 | 5 469 912 . Destroy 0b10 Robot/C 740 | . 220 520 . Destroy 0b10 Robot/NC 140 | 5 35 100 . Destroy Leader 216 | . 56 160 . Successful Hack 54 | . 15 39 . Disable Machine 60 | . 45 15 . Destroy Structure 41 | . 38 3 . Lose Combat Pursuer 135 | . 60 75 . Influence Decreases 1346 | 5 325 951 65 Entered New Map 149 | . . 84 65 Time Decay 847 | 5 305 537 . Lost Part 50 | . 20 30 . Purge Threat 300 | . . 300 . Squads Dispatched 5 | . 2 3 . Investigation 1 | . 1 . . Extermination . | . . . . Reinforcement 4 | . 1 3 . Assault . | . . . . Garrison . | . . . . Intercept . | . . . . Searches Triggered . | . . . . Construction Impeded 1 | . . 1 . Haulers Reinforced . | . . . . Active Scanning Responses . | . . . . Cargo Convoy Interrupts . | . . . . Stealth | -11 -10 -9 -9 --------- Run | Yrd Mat Mat Min Distress Signals 5 | . . 5 . Communications Jammed . | . . . . Distress Signals . | . . . . Times Spotted 60 | . 23 37 . Peak Tracking Total 5 | . 5 5 . Tactical Retreats 6 | . 3 3 . Traps | -11 -10 -9 -9 ------- Run | Yrd Mat Mat Min Traps Triggered 1 | . 1 . . Indirectly . | . . . . Trap Hack Attempts . | . . . . Triggered . | . . . . Disarmed . | . . . . Reprogrammed . | . . . . Reused . | . . . . Traps Extracted . | . . . . Installed . | . . . . Triggered . | . . . . Machines | -11 -10 -9 -9 ---------- Run | Yrd Mat Mat Min Machines Disabled 5 | . 3 2 . Max in Single Turn 2 | . 2 1 . Machines Repaired . | . . . . Machines Dismantled . | . . . . Machines Sabotaged . | . . . . Overloaded Fab Kills . | . . . . Hacking | -11 -10 -9 -9 --------- Run | Yrd Mat Mat Min Machines Accessed 13 | . 5 8 . Terminals 10 | . 5 5 . Fabricators . | . . . . Repair Stations 2 | . . 2 . Recycling Units . | . . . . Scanalyzers 1 | . . 1 . Garrison Access . | . . . . Total Hacks 42 | . 14 28 . Successful 22 | . 6 16 . Failed 19 | . 8 11 . Catastrophic 5 | . 3 2 . Database Lockouts 1 | . . 1 . Manual 5 | . 1 4 . Terminals 33 | . 14 19 . Fabricators . | . . . . Repair Stations 5 | . . 5 . Recycling Units . | . . . . Scanalyzers 4 | . . 4 . Garrison Access . | . . . . Terminal Hacks 15 | . 6 9 . Record 2 | . 1 1 . Robot Analysis 1 | . . 1 . Prototype ID Bank 3 | . 2 1 . Alert Level 1 | . . 1 . Unreport Threat 2 | . . 2 . Locate Traps 1 | . . 1 . Hauler Manifests 3 | . 2 1 . Zone Layout 2 | . 1 1 . Fabricator Hacks . | . . . . Repair Station Hacks 4 | . . 4 . Scan Component 2 | . . 2 . Repair 2 | . . 2 . Recycling Unit Hacks . | . . . . Scanalyzer 3 | . . 3 . Insert Component 1 | . . 1 . Analyze 1 | . . 1 . Retrieve Study 1 | . . 1 . Garrison Access Hacks . | . . . . Unauthorized Hacks . | . . . . Terminals . | . . . . Fabricators . | . . . . Repair Stations . | . . . . Recycling Units . | . . . . Scanalyzers . | . . . . Garrison Access . | . . . . Data Cores Recovered . | . . . . Used . | . . . . Hacking Detections 11 | . 4 7 . Full Trace Events 2 | . 2 . . Feedback Events . | . . . . Feedback Blocked . | . . . . Robot Schematics Acquired . | . . . . Robots Built . | . . . . Authchips . | . . . . Time . | . . . . Total Robot Build Rating . | . . . . Part Schematics Acquired 1 | . . 1 . Parts Built . | . . . . Authchips . | . . . . Time . | . . . . Total Part Build Rating . | . . . . Part Studies Acquired 1 | . . 1 . Parts Repaired 2 | . . 2 . Time 52 | . . 52 . Parts Recycled . | . . . . Recycled Matter . | . . . . Retrieved Matter . | . . . . Retrieved Components . | . . . . Parts Scanalyzed 1 | . . 1 . Part Schematics Acquired 1 | . . 1 . Parts Damaged . | . . . . Bothacking | -11 -10 -9 -9 ------------ Run | Yrd Mat Mat Min Used RIF Installer . | . . . . Robots Hacked . | . . . . Non-combat . | . . . . Combat . | . . . . Robot Hacks Applied . | . . . . Relay Couplers Released . | . . . . Fabnet Peak Effective % . | . . . . Robots Rewired . | . . . . Allies Hacked . | . . . . Hacks Repelled . | . . . . Allies | -11 -10 -9 -9 -------- Run | Yrd Mat Mat Min Total Allies . | . . . . Largest Group . | . . . . Highest-Rated Group . | . . . . Highest-Rated Ally . | . . . . Total Orders . | . . . . Ally Attacks . | . . . . Total Damage . | . . . . Kills . | . . . . Allies Corrupted . | . . . . Allies Melted . | . . . . Intel | -11 -10 -9 -9 ------- Run | Yrd Mat Mat Min Active Infowar (turns) 1362 | 14 624 718 6 Seismic 1121 | 14 624 477 6 T.N.C. 246 | . . 246 . Robot Analysis Total 1 | . . 1 . Derelict Logs Recovered . | . . . . Drone Launches . | . . . . Drone Recoveries . | . . . . Exploration | -11 -10 -9 -9 ------------- Run | Yrd Mat Mat Min Turns Passed 2389 | 88 686 1609 6 Spaces Moved 1355 | 47 350 953 5 Core 5 | 5 . . . Treads 193 | 42 151 . . Legs 1157 | . 199 953 5 Wheels . | . . . . Hover . | . . . . Flight . | . . . . Fastest Speed 50 | 50 120 105 120 Average Speed 120 | 152 137 113 120 Slowest Speed 160 | 160 160 120 120 Overloaded Moves . | . . . . Propulsion Burnouts . | . . . . Robots Hopped . | . . . . Potential Cave-ins . | . . . . Cave-ins Triggered . | . . . . Exploration Rate (%) 32 | 4 54 68 4 Regions Visited 3 Branch Regions 1 Pre-discovered Areas . | . . . . Known Exits Taken . | . . . . Unknown Exits Taken 3 | 1 1 1 . Scrap Searched . | . . . . Spaces Dug . | . . . . Terrain Destroyed 42 | . 42 . . Melee . | . . . . Projectile . | . . . . AOE 42 | . 42 . . Terrain Rammed . | . . . . Walls Destroyed . | . . . . Machines Disabled . | . . . . Actions | -11 -10 -9 -9 --------- Run | Yrd Mat Mat Min Total 1776 | 58 459 1254 5 Wait 137 | . 29 108 . Move 1352 | 46 349 952 5 Hop . | . . . . Pick Up 37 | 4 13 20 . Fast Attach 9 | 7 . 2 . Attach 8 | . 2 6 . Detach . | . . . . Swap 36 | . 6 30 . Drop 27 | . 10 17 . Fire 164 | 1 50 113 . Melee . | . . . . Ram . | . . . . Kick 6 | . . 6 . Crush . | . . . . Escape Stasis . | . . . . Rewire . | . . . . Trap . | . . . . Miscellaneous . | . . . . Route ------- -11/Scrapyard -10/Materials (discovered 4 exits: *Mat x2 / [*Min x2]) -9/Materials (discovered 3 exits: [*Mat] / [*Min x2]) -9/Mines History --------- Turn | Location | Event 7 | -11/Scrapyard | Discovered new exit (range 15) 89 | -11/Scrapyard | Entered Materials 296 | -10/Materials | Discovered new exit (range 16) 306 | -10/Materials | Build established: Mutant 515 | -10/Materials | Discovered new exit (range 10) 552 | -10/Materials | Discovered new exit (range 13) 749 | -10/Materials | Discovered new exit (range 17) 775 | -10/Materials | Entered another Materials area 775 | -9/Materials | Evolved 2 slots: Propulsion x2 995 | -9/Materials | Central database locked down 1060 | -9/Materials | Repaired Aluminum Leg+ 1334 | -9/Materials | Repaired Aluminum Leg+ 1408 | -9/Materials | Discovered new exit (range 15) 1634 | -9/Materials | Discovered new exit (range 7) 2178 | -9/Materials | Discovered new exit (range 5) 2384 | -9/Materials | Entered Mines 2390 | -9/Mines | Self-destructed Last Messages --------------- 02266_ R-06 Scavenger collects Wheel. 02266_ Acquired Ion Engine. 02268_ Dropped Ion Engine. 02268_ Acquired Hvy. Ion Engine. 02270_ R-06 Scavenger collects Weight Redist. System. 02270_ Acquired Med. Armor Plating. 02273_ R-06 Scavenger collects Lgt. Treads. 02273_ Acquired Aluminum Leg+. 02275_ R-06 Scavenger destroyed. 02280_ Extracted 24 matter. 02281_ Acquired Hcp. Matter Pod. 02283_ K-01 Serf collects debris. 02296_ R-06 Scavenger collects Rocket Launcher. 02298_ K-01 Serf collects debris. 02305_ R-06 Scavenger collects Com. Wheel. 02308_ K-01 Serf collects debris. 02309_ R-06 Scavenger collects Weight Redist. System. LOCATION=UNKNOWN GOAL=ESCAPE [Achievement: Deductive Reasoning] Map ----- +----------------------------------------------------+ | ????????????????????????????????????????? | | ????????????????????????????????????????? | | ????????????????????????????????????????? | | ????????????????????????????????????????? | | ????????????????????????????????????????? | | ????????????????????????????????????????? | | ????????????????????????????????????????? | | ????????????????????????????????????????? | | ????????????????????????????????????????? | | ????????????????????????????????????????? | | ????????????????????????????????????????? | | ????????????????????????????????????????? | | ????????????????????????????????????????? | | ????????????????????????????????????????? | | ????????????????????????????????????????? | | ????????????????????????##??????????????? | | ???????????????????????? ??????????????? | | ???????????????????????? #?????????????? | | ????????????????????????# #?????????????? | | ????????????????????????# #?????????????? | | ????????????????????????# #?????????????? | | ????????????????????????# #?????????????? | | ????????????????????????# #?????????????? | | ????????????????????????# #?????????????? | | ????????????????????????# #?????????????? | | ????????????????????????#@#???#?????????? | | ????????????????????????# #?? #?????????? | | ??????????????????????### ### #?????????? | | ?????????????????????## #?????????? | | ?????????????????????# #?????????? | | ?????????????????????# #?????????? | | ?????????????????????# ##?????????? | | ?????????????????????# ##??????????? | | ?????????????????????## ##???????????? | | ??????????????????????# #????????????? | | ?????????????????????? #????????????? | | ?????????????????????# ##????????????? | | ?????????????????????## ##?????????????? | | ??????????????????????###???????????????? | | ????????????????????????????????????????? | | ????????????????????????????????????????? | | ????????????????????????????????????????? | | ????????????????????????????????????????? | | ????????????????????????????????????????? | | ????????????????????????????????????????? | | ????????????????????????????????????????? | | ????????????????????????????????????????? | | ????????????????????????????????????????? | | ????????????????????????????????????????? | | ????????????????????????????????????????? | +----------------------------------------------------+ Best States ------------- Heat Dissipation 42 Energy Generation 14 Energy Capacity 280 Matter Stores 300 Matter Capacity 300 Sight Range 16 Terrain Scan Density 85 Evasion (%) 55 Targeting Accuracy 6 Recoil Reduction 2 Item Schematics ----------------- Seismic Detector | -9/Materials | Scanalyzed Robot Schematics ------------------ None Fabricated ------------ Nothing Repaired ---------- Aluminum Leg | 28% | -9/Materials Aluminum Leg | 47% | -9/Materials Studied --------- Aluminum Leg | -9/Materials | Hacked Alien Tech Used ----------------- None Achievements -------------- Deductive Reasoning Challenges ------------ None Game ------ Seed PoweredBladeWheel Manual? 0 Play Time 00:36:24 Cumulative 28.1 hours Start 2026.08.01 @ 19:59:55 End 2026.08.01 @ 20:39:38 Sessions 1 Manual Loads 0 Difficulty Rogue Special Mode None Game No. 18 Rogue 18 Adventurer 0 Explorer 0 Win Type - Total 0 Types 0/0/0/0/0/0/0/0/0/0 Lore% 10 Gallery% 24 Achievement% 19 Wizard Run 0 Options --------- Layout 0 ASCII 1 Keyboard 1 Movement Numpad Keybinds 1 Fullscreen 1 Font 18/Terminus Map View 76x50 Zoom Use 0% Tactical HUD 1 Map Filters NONE Filters NONE Steam 1 RUN: 9ff01efd-087a-48e7-b339-d74917f1ac65